Cogmind - Beta 11.1 *** ADVENTURER MODE // 2022.08.03 @ 00:25:30 Player: drchaos820 Result: Self-destructed Performance ------------- Evolutions (1) 500 Regions Visited (3) 600 Robots Destroyed (31) 155 Value Destroyed (887) 887 Prototype IDs (0) 0 Alien Tech Used (0) 0 Bonus (0) 0 TOTAL SCORE: 2142 Bonus ------- None Cogmind --------- Core Integrity 259/400 Matter 288/300 Energy 415/415 System Corruption 1% Temperature Cool (0) Movement Treading (160) Location -9/Storage Parts ------- > --- POWER (2) -------- Ion Engine Improved Ion Engine > --- PROPULSION (2) --- Improved Treads Improved Treads > --- UTILITY (3) ------ Heat Sink Small Storage Unit Light Armor Plating > --- WEAPON (2) ------- Medium Laser Improved Light Cannon > --- INVENTORY (8) ---- Light Treads Light Treads Improved Aluminum Leg Improved Aluminum Leg Visual Processing Unit Signal Interpreter Light Cannon Grenade Launcher Peak State ------------ > --- POWER ------------ Ion Engine Improved Ion Engine > --- PROPULSION ------- Improved Treads Improved Treads > --- UTILITY ---------- Heat Sink Small Storage Unit Light Armor Plating > --- WEAPON ----------- Medium Laser Improved Light Cannon > --- INVENTORY -------- Light Treads Light Treads Improved Aluminum Leg Improved Aluminum Leg Visual Processing Unit Signal Interpreter Light Cannon Grenade Launcher [Rating: 14] Favorites ----------- Power Ion Engine Engine Ion Engine Propulsion Improved Treads Treads Improved Treads Utility Small Storage Unit Device Structural Scanner Storage Small Storage Unit Protection Light Armor Plating Weapon Medium Laser Energy Gun Medium Laser Ballistic Cannon Improved Light Cannon Build | -11 -10 -9 -9 ------- Run | Scr Mat Mat Sto Slots Evolved 2 | . . 2 . Power 1 | . . 1 . Propulsion . | . . . . Utility 1 | . . 1 . Weapon . | . . . . Parts Attached 19 | 6 1 2 10 Power 4 | 1 . 1 2 Engine 4 | 1 . 1 2 Core . | . . . . Reactor . | . . . . Propulsion 6 | 2 . . 4 Treads 6 | 2 . . 4 Leg . | . . . . Wheel . | . . . . Hover . | . . . . Flight . | . . . . Utility 6 | 1 1 1 3 Device 2 | . 1 . 1 Storage 2 | 1 . . 1 Processor . | . . . . Hackware . | . . . . Protection 2 | . . 1 1 Artifact . | . . . . Weapon 3 | 2 . . 1 Energy Gun 2 | 2 . . . Energy Cannon . | . . . . Ballistic Gun . | . . . . Ballistic Cannon 1 | . . . 1 Launcher . | . . . . Special Weapon . | . . . . Impact Weapon . | . . . . Slashing Weapon . | . . . . Piercing Weapon . | . . . . Special Melee Weapon . | . . . . Unidentified Prototypes . | . . . . Parts Lost 3 | . . . 3 Power 1 | . . . 1 Propulsion . | . . . . Utility 2 | . . . 2 Weapon . | . . . . Highest Loss Streak 2 | . . . 2 To Critical Strikes . | . . . . Average Slot Usage (%) 96 | . 98 80 97 Engine 18 | . 14 12 20 Treads 23 | . 28 22 22 Device 10 | . 13 11 9 Storage 12 | . 14 11 11 Protection 8 | . . 2 10 Energy Gun 18 | . 28 22 15 Ballistic Cannon 4 | . . . 6 Naked Turns . | . . . . Heaviest Build 98 | 13 14 24 98 Greatest Support 46 | 40 40 40 46 Greatest Overweight (x) 2 | . . . 2 Average Overweight (x) . | . . . . Largest Inventory Capacity 25 | 8 8 8 25 Average Capacity 8 | 6 8 8 9 Most Carried 9 | 2 6 6 9 Average Carried 6 | 1 3 6 8 Final Capacity 8 | 8 8 8 8 Final Carried 8 | 2 6 6 8 Class Distribution -------------------- 59% | Mutant 38% | Scavenger-Mutant Dominant Class ---------------- Mutant | -10/Materials Mutant | -9/Materials Scavenger-Mutant | -9/Storage Resources | -11 -10 -9 -9 ----------- Run | Scr Mat Mat Sto Matter Collected 693 | 260 10 10 413 Remotely . | . . . . Salvage Created 1351 | . 12 109 1230 Parts 83 | . 5 9 69 Haulers Intercepted 2 | . . . 2 Recyclers Shooed 2 | . . . 2 Parts Field Recycled . | . . . . Retrieved Matter . | . . . . Parts Self-Destructed . | . . . . Prevented . | . . . . Kills | -11 -10 -9 -9 ------- Run | Scr Mat Mat Sto Combat Hostiles Destroyed 19 | . . 2 17 Guns 13 | . . 2 11 Cannons 6 | . . . 6 Classes Destroyed 8 | . 1 1 6 Worker 1 | . . . 1 Hauler 2 | . . . 2 Recycler 4 | . . . 4 Mechanic 1 | . . . 1 Operator 1 | . . . 1 Watcher 3 | . 1 . 2 Grunt 10 | . . . 10 Sentry 9 | . . 2 7 Best Kill Streak 4 | . 1 2 4 Combat Bots Only 3 | . . 2 3 Max Kills in Single Turn 1 | . 1 1 1 Gunslinging . | . . . . Exploded . | . . . . Melee . | . . . . Uniques/NPCs Destroyed . | . . . . Combat | -11 -10 -9 -9 -------- Run | Scr Mat Mat Sto Damage Taken 810 | . . 126 684 Core 141 | . . 11 130 Absorbed by Shields . | . . . . Core Remaining (%) 100 | 100 100 . . Volleys Fired 73 | . 1 7 65 Largest 2 | . 2 2 2 Hottest 90 | . 90 90 90 Shots Fired 145 | . 2 14 129 Gun 109 | . 2 14 93 Cannon 36 | . . . 36 Launcher . | . . . . Special . | . . . . Kinetic 36 | . . . 36 Thermal 109 | . 2 14 93 Explosive . | . . . . Electromagnetic . | . . . . Robot Hit Streak 21 | . 1 12 21 Robot Miss Streak 2 | . . 1 2 Penetration Max . | . . . . Secondary Targets 1 | . . . 1 Max Gunslinging Chain 1 | . . . 1 Shots Hit Robots 115 | . 1 13 101 Core Hits 55 | . 1 4 50 Critical Kills . | . . . . Critical Parts Destroyed . | . . . . Critical Strikes 7 | . 1 . 6 Burn 7 | . 1 . 6 Melee Attacks . | . . . . Impact . | . . . . Slashing . | . . . . Piercing . | . . . . Sneak Attacks . | . . . . Combat Hostiles . | . . . . Follow-up Attacks . | . . . . Damage Inflicted 1671 | . 12 157 1502 Guns 1072 | . 12 157 903 Cannons 599 | . . . 599 Explosions . | . . . . Melee . | . . . . Ramming . | . . . . Kinetic 599 | . . . 599 Thermal 1072 | . 12 157 903 Explosive . | . . . . Electromagnetic . | . . . . Impact . | . . . . Slashing . | . . . . Piercing . | . . . . Highest Corruption 1 | . . . 1 Average Corruption 1 | . . . 1 Corruption Purged . | . . . . Corruption Blocked . | . . . . Effects 3 | . . . 3 Message Errors 2 | . . . 2 Data Loss (major) 1 | . . . 1 Overload Shots . | . . . . Overflow Damage 10 | . . . 10 Projectiles 10 | . . . 10 Explosions . | . . . . Melee . | . . . . Knockbacks . | . . . . Impact . | . . . . Kinetic . | . . . . Secondary . | . . . . Self-Inflicted Damage . | . . . . Shots . | . . . . Rammed 1 | . . . 1 Targets Rammed 1 | . . . 1 Kicked . | . . . . Crushed . | . . . . Highest Temperature 627 | . 30 102 627 Average Temperature 125 | . 18 54 134 Received Heat Transfer 405 | . . 45 360 Effects 24 | . . . 24 Shutdowns 7 | . . . 7 Energy Bleed 1 | . . . 1 Interference 3 | . . . 3 Matter Decay 4 | . . . 4 Damage (minor) 3 | . . . 3 Damage (major) 5 | . . . 5 Damage (core) 1 | . . . 1 Siege Activations . | . . . . Robots Corrupted . | . . . . Combat Hostiles . | . . . . Parts Fried . | . . . . Impact Corruptions . | . . . . Robots Melted . | . . . . Combat Hostiles . | . . . . Parts Melted 4 | . . 1 3 Heat Transferred 3487 | . 111 409 2967 Parts Sabotaged . | . . . . Parts Stolen . | . . . . Parts Stripped . | . . . . Power Chain Reactions . | . . . . Missiles Intercepted . | . . . . Alert | -11 -10 -9 -9 ------- Run | Scr Mat Mat Sto Peak Influence 198 | . 7 77 198 Initial 27 | . . 2 27 Average 67 | . 2 27 92 Maximum Alert Level . | . . . . Low Security (%) 100 | 100 100 100 100 Level 1 . | . . . . Level 2 . | . . . . Level 3 . | . . . . Level 4 . | . . . . Level 5 . | . . . . High Security . | . . . . Max Security . | . . . . Squads Dispatched 3 | . . . 3 Investigation . | . . . . Extermination . | . . . . Reinforcement 2 | . . . 2 Assault . | . . . . Garrison 1 | . . . 1 Intercept . | . . . . Searches Triggered . | . . . . Construction Impeded . | . . . . Haulers Reinforced . | . . . . Active Scanning Responses . | . . . . Cargo Convoy Interrupts . | . . . . Stealth | -11 -10 -9 -9 --------- Run | Scr Mat Mat Sto Distress Signals 5 | . . . 5 Communications Jammed . | . . . . Distress Signals . | . . . . Times Spotted 26 | . 1 2 23 Peak Tracking Total 4 | . 1 2 4 Tactical Retreats . | . . . . Traps | -11 -10 -9 -9 ------- Run | Scr Mat Mat Sto Traps Triggered 4 | . . . 4 Indirectly . | . . . . Trap Hack Attempts . | . . . . Triggered . | . . . . Disarmed . | . . . . Reprogrammed . | . . . . Reused . | . . . . Traps Extracted . | . . . . Installed . | . . . . Triggered . | . . . . Machines | -11 -10 -9 -9 ---------- Run | Scr Mat Mat Sto Machines Disabled 1 | . . . 1 Max in Single Turn 1 | . . . 1 Machines Sabotaged . | . . . . Garrisons Compromised . | . . . . Overloaded Fab Kills . | . . . . Hacking | -11 -10 -9 -9 --------- Run | Scr Mat Mat Sto Machines Accessed 3 | . 1 . 2 Terminals 3 | . 1 . 2 Fabricators . | . . . . Repair Stations . | . . . . Recycling Units . | . . . . Scanalyzers . | . . . . Garrison Access . | . . . . Total Hacks 4 | . 2 . 2 Successful 3 | . 1 . 2 Failed 1 | . 1 . . Catastrophic . | . . . . Database Lockouts . | . . . . Manual 4 | . 2 . 2 Terminals 4 | . 2 . 2 Fabricators . | . . . . Repair Stations . | . . . . Recycling Units . | . . . . Scanalyzers . | . . . . Garrison Access . | . . . . Terminal Hacks 3 | . 1 . 2 Open Door 1 | . . . 1 Zone Layout 2 | . 1 . 1 Fabricator Hacks . | . . . . Repair Station Hacks . | . . . . Recycling Unit Hacks . | . . . . Scanalyzer . | . . . . Garrison Access Hacks . | . . . . Unauthorized Hacks . | . . . . Terminals . | . . . . Fabricators . | . . . . Repair Stations . | . . . . Recycling Units . | . . . . Scanalyzers . | . . . . Garrison Access . | . . . . Data Cores Recovered . | . . . . Used . | . . . . Hacking Detections 2 | . . . 2 Full Trace Events . | . . . . Feedback Events . | . . . . Feedback Blocked . | . . . . Robot Schematics Acquired . | . . . . Robots Built . | . . . . Authchips . | . . . . Time . | . . . . Total Robot Build Rating . | . . . . Part Schematics Acquired . | . . . . Parts Built . | . . . . Authchips . | . . . . Time . | . . . . Total Part Build Rating . | . . . . Parts Repaired . | . . . . Time . | . . . . Parts Recycled . | . . . . Recycled Matter . | . . . . Retrieved Matter . | . . . . Retrieved Components . | . . . . Parts Scanalyzed . | . . . . Part Schematics Acquired . | . . . . Parts Damaged . | . . . . Bothacking | -11 -10 -9 -9 ------------ Run | Scr Mat Mat Sto Used RIF Installer . | . . . . Robots Hacked . | . . . . Non-combat . | . . . . Combat . | . . . . Robot Hacks Applied . | . . . . Relay Couplers Released . | . . . . Fabnet Peak Effective % . | . . . . Robots Rewired . | . . . . Allies Hacked . | . . . . Hacks Repelled . | . . . . Allies | -11 -10 -9 -9 -------- Run | Scr Mat Mat Sto Total Allies 10 | . . . 10 Largest Group 10 | . . . 10 Highest-Rated Group 88 | . . . 88 Highest-Rated Ally 16 | . . . 16 Total Orders . | . . . . Ally Attacks 11 | . . . 11 Total Damage 122 | . . . 122 Kills . | . . . . Allies Corrupted . | . . . . Allies Melted . | . . . . Intel | -11 -10 -9 -9 ------- Run | Scr Mat Mat Sto Robot Analysis Total . | . . . . Derelict Logs Recovered . | . . . . Drone Launches . | . . . . Drone Recoveries . | . . . . Exploration | -11 -10 -9 -9 ------------- Run | Scr Mat Mat Sto Turns Passed 1831 | 112 292 157 1270 Spaces Moved 912 | 67 169 67 609 Core 5 | 5 . . . Treads 907 | 62 169 67 609 Legs . | . . . . Wheels . | . . . . Hover . | . . . . Flight . | . . . . Fastest Speed 50 | 50 160 160 160 Average Speed 163 | 151 160 160 166 Slowest Speed 320 | 160 160 160 320 Overloaded Moves . | . . . . Propulsion Burnouts . | . . . . Robots Hopped . | . . . . Cave-ins Triggered . | . . . . Exploration Rate (%) 26 | 4 23 9 69 Regions Visited 3 Branch Regions 1 Pre-discovered Areas . | . . . . Known Exits Taken . | . . . . Unknown Exits Taken 3 | 1 1 1 . Scrap Searched . | . . . . Spaces Dug . | . . . . Terrain Destroyed 2 | . . . 2 Melee . | . . . . Projectile 2 | . . . 2 AOE . | . . . . Terrain Rammed . | . . . . Walls Destroyed . | . . . . Machines Disabled . | . . . . Actions | -11 -10 -9 -9 --------- Run | Scr Mat Mat Sto Total 1099 | 74 188 102 735 Wait 79 | . 14 27 38 Move 909 | 66 168 66 609 Hop . | . . . . Pick Up 9 | 2 4 . 3 Fast Attach 14 | 6 1 2 5 Attach . | . . . . Detach . | . . . . Swap 5 | . . . 5 Drop 7 | . . . 7 Fire 73 | . 1 7 65 Melee . | . . . . Ram . | . . . . Kick . | . . . . Crush 1 | . . . 1 Escape Stasis . | . . . . Rewire 2 | . . . 2 Trap . | . . . . Miscellaneous . | . . . . Route ------- -11/Scrapyard -10/Materials (discovered 2 exits: [*Mat] / [*Min]) -9/Materials -9/Storage History --------- Turn | Location | Event 2 | -11/Scrapyard | Met Revision 17 13 | -11/Scrapyard | Discovered new exit (range 15) 113 | -11/Scrapyard | Entered Materials 311 | -10/Materials | Build established: Mutant 320 | -10/Materials | Discovered new exit (range 15) 324 | -10/Materials | Discovered new exit (range 10) 405 | -10/Materials | Entered another Materials area 405 | -9/Materials | Evolved 2 slots: Power x1, Utility x1 548 | -9/Materials | Discovered new exit (range 9) 562 | -9/Materials | Entered Storage 1353 | -9/Storage | Build established: Scavenger-Mutant 1798 | -9/Storage | Assisted by bots powering up and referring to "LRC-V3" 1826 | -9/Storage | Garrison activated, responded to threat 1832 | -9/Storage | Self-destructed Last Messages --------------- 01775_ K-01 Serf collects debris. 01793_ Two rows of pristine grunt class robots stand immobile, all facing the entryway as if waiting for something. 01794_ Terminal unresponsive. 01796_ Attempting to rewire G-34 Mercenary. 01798_ One of them suddenly speaks: "Hello LRC-V3. What is your command?" You have a new controllable ally. Review and give out orders from the Allies menu (F6). Move into an ally to swap places with them. 01817_ W-16 Scout distress signal alerts nearby ally. 01817_ W-16 Scout destroyed. 01821_ Mercenary 2i destroyed. 01822_ Mercenary 2c destroyed. 01826_ ALERT: Activating Garrison Access S001. 01827_ Trooper 2a destroyed. 01827_ Y-45 Defender suffers critical hit (Burn). 01827_ Y-45 Defender destroyed. 01830_ Mercenary 2f triggered Blade Trap. 01830_ Massive razor-sharp blades shoot up from within the floor. 01830_ Aluminum Leg severed. Map ----- +----------------------------------------------------+ | | | | | | | | | | | | | | | | | | | | | | | | | | | | | | | | | ?????????????????????????????????????????????????? | | ???????????????????????????????????????####??????? | | ?????????????????????????????????????## #??????? | | ????????????????????##???????????????# #??????? | | ???????????????????##%################ #??????? | | ???????????????????# % != # + #??????? | | ???????????????????#|!!%! # ##T #??????? | | ???????????????????#|! *%=# ######??????? | | ???????????????????#! [ # ############# | | ???????????????????# @/=[ % T"^ | | ???????????????????# g #%#############%= ^ | | ???????????????????##+##/##=#???????????# ^^ | | ?????????????????????? %? /??????##?### """"" | | ?????????????????????### %#=?????# #^ """"" | | ???????????????????????# =# ????# "" # """""" | | ???????????????????????# #? ????# "Y # """" | | ???????????????????????#+##+#? ???# "" # | | ???????????????????????????????##??# + | | ???????????????????????????????????# [ # | | ???????????????????????????????????# # ######% | | ???????????????????????????????????# # #????#% | | ???????????????????????????????????# + #????#! | | ???????????????????????????????????# #####+##???# | | ?????????????????????????????????????# #####+ | | ?????????????????????????????????????#""" # | | ?????????????????????????????????????#""" # | | ?????????????????????????????????????#""" # | | ?????????????????????????????????????# # | | ?????????????????????????????????????# # | | ?????????????????????????????????????######## | | ????????????????????????????????????????????###### | | ????????????????????????????????????????????###### | | ????????????????????????????????????????????## | | ????????????????????????????????????????????## | +----------------------------------------------------+ Best States ------------- Heat Dissipation 38 Energy Generation 17 Energy Capacity 415 Matter Stores 300 Matter Capacity 300 Sight Range 16 Terrain Scan Density 10 Armor Coverage 150 Resistance: KI 20 Resistance: TH 20 Resistance: EX 20 Resistance: EM 20 Resistance: I 20 Resistance: S 20 Resistance: P 20 Evasion (%) 40 Recoil Reduction 2 Offensive Hacking 10 Item Schematics ----------------- None Robot Schematics ------------------ None Fabricated ------------ Nothing Alien Tech Used ----------------- None Achievements -------------- None Challenges ------------ None Game ------ Seed GuidedAlloyBay Manual? 0 Play Time 00:09:38 Cumulative 14.9 hours Start 2022.06.04 @ 01:31:34 End 2022.08.03 @ 00:25:30 Sessions 4 Manual Loads 0 Difficulty Adventurer Special Mode None Game No. 20 Rogue 10 Adventurer 10 Explorer 0 Win Type - Total 1 Types 1/0/0/0/0/0/0/0/0 Lore% 39 Gallery% 34 Achievement% 37 Wizard Run 0 Options --------- ASCII 0 Keyboard 0 Movement Arrows Keybinds 0 Fullscreen 1 Font 18/SmallcapsGlow Map View 76x50 Tactical HUD 1 Map Filters NONE Filters NONE Steam 1 RUN: f85165f0-059d-48eb-a566-d4b870b520dc